bitfinex/quotes_BTCUSD_20250604
["timestamp","ask_amount","ask_price","bid_price","bid_amount"]
[1749060710607,1.79255348,105090.0,105080.0,0.3355743]
[1749060710815,1.79255348,105090.0,105080.0,0.5804]
[1749060711026,1.79255348,105090.0,105080.0,0.52472]
[1749060711251,1.79255348,105090.0,105080.0,0.50932]
[1749060711461,1.82345348,105090.0,105080.0,0.25]
[1749060711671,1.83252424,105090.0,105080.0,0.25]
[1749060711877,1.83252424,105090.0,105080.0,0.40588]
[1749060712086,1.83252424,105090.0,105080.0,0.20732]
[1749060712300,1.83252424,105090.0,105080.0,0.40188]
[1749060712506,1.83452424,105090.0,105080.0,0.40188]
[1749060712708,1.83452424,105090.0,105080.0,0.20532]
[1749060712914,1.83452424,105090.0,105080.0,0.40188]
[1749060714172,1.83452525,105090.0,105080.0,0.40188]
[1749060714346,1.83452525,105090.0,105080.0,0.20532]
[1749060714554,1.83452525,105090.0,105080.0,0.40184]
[1749060715475,2.33452525,105090.0,105080.0,0.40184]
[1749060716510,2.33452525,105090.0,105080.0,0.20532]
[1749060716723,2.33452525,105090.0,105080.0,0.40184]
[1749060716924,2.30362525,105090.0,105080.0,0.41814]
[1749060717349,2.26362525,105090.0,105080.0,0.41814]
[1749060717769,2.26362525,105090.0,105080.0,0.20532]
[1749060717987,2.26362525,105090.0,105080.0,0.40184]
[1749060718631,2.26362527,105090.0,105080.0,0.40184]
[1749060719265,2.26362527,105090.0,105080.0,0.20532]
[1749060719469,2.26362527,105090.0,105080.0,0.40184]
[1749060720732,2.26362527,105090.0,105080.0,0.20532]
[1749060720947,2.29422527,105090.0,105080.0,0.40184]
[1749060721598,2.29422454,105090.0,105080.0,0.40184]
[1749060721806,2.29422454,105090.0,105080.0,0.20532]
[1749060722241,2.29422454,105090.0,105080.0,0.40184]
[1749060723651,2.27862412,105090.0,105080.0,0.40184]
[1749060724453,2.23862412,105090.0,105080.0,0.40184]
[1749060724866,2.23862412,105090.0,105080.0,0.20532]
[1749060725287,2.23862412,105090.0,105080.0,0.40184]
[1749060725926,2.23862412,105090.0,105080.0,0.20532]
[1749060726142,2.25452412,105090.0,105080.0,0.40184]
[1749060730113,2.24545348,105090.0,105080.0,0.40184]
[1749060730321,2.25452264,105090.0,105080.0,0.40184]
[1749060730552,2.35037694,105090.0,105080.0,0.20532]
[1749060730755,2.35037694,105090.0,105080.0,0.24596]
[1749060730959,2.35037694,105090.0,105080.0,0.40184]
[1749060731534,2.31037694,105090.0,105080.0,0.40184]
[1749060734656,2.31037525,105090.0,105080.0,0.40184]
[1749060735330,2.31037525,105090.0,105080.0,0.24596]
[1749060735547,2.31037525,105090.0,105080.0,0.40184]
[1749060736204,2.31037525,105090.0,105080.0,0.20532]
[1749060736446,2.31037525,105090.0,105060.0,4.797e-05]
[1749060736447,0.372,105080.0,105060.0,4.797e-05]
[1749060736691,1.62040778,105070.0,105060.0,4.797e-05]
[1749060736928,1.62947525,105070.0,105060.0,0.24600797]
[1749060737178,1.65802625,105070.0,105060.0,0.40188797]
[1749060737688,1.65802625,105070.0,105040.0,0.015]
[1749060737689,0.372,105060.0,105040.0,0.015]
[1749060737974,0.34,105040.0,105030.0,0.40684096]
[1749060738220,0.338,105040.0,105030.0,0.56286513]
[1749060738472,1.08427674,105040.0,105030.0,0.56286513]
[1749060738955,1.08427674,105040.0,105030.0,0.57177978]
[1749060739591,1.08427674,105040.0,105030.0,0.58269443]
[1749060740292,1.08427674,105040.0,105030.0,0.57377978]
[1749060740542,1.08427674,105040.0,105030.0,0.57577978]
[1749060740971,1.08427674,105040.0,105030.0,0.58469443]
[1749060741185,1.08427674,105040.0,105030.0,0.57577978]
[1749060741635,1.08427674,105040.0,105030.0,0.58469443]
[1749060741872,1.08427674,105040.0,105030.0,0.57577978]
[1749060742084,1.08427674,105040.0,105030.0,0.60252374]
[1749060742294,1.08427674,105040.0,105030.0,0.57577978]
[1749060742509,1.08427674,105040.0,105030.0,0.59360909]
[1749060742734,1.08427674,105040.0,105030.0,0.67163408]
[1749060743391,1.08427674,105040.0,105030.0,0.68054849]
[1749060743825,1.08427674,105040.0,105030.0,0.67163408]
[1749060744052,1.08427674,105040.0,105030.0,0.87699408]
[1749060744265,1.08427674,105040.0,105030.0,0.91763408]
[1749060744493,1.08427674,105040.0,105030.0,0.86843636]
[1749060744722,1.08427674,105040.0,105030.0,0.84169312]
[1749060744947,1.08427674,105040.0,105030.0,0.85060753]
[1749060745190,1.08427674,105040.0,105030.0,0.84169312]
[1749060745696,1.08427674,105040.0,105030.0,0.85060753]
[1749060745909,1.08427674,105040.0,105030.0,0.85952195]
[1749060746138,1.08427674,105040.0,105030.0,0.84169312]
[1749060746353,1.08427674,105040.0,105030.0,0.85952195]
[1749060746781,1.08427674,105040.0,105030.0,0.84169312]
[1749060746999,1.08427674,105040.0,105030.0,0.85952195]
[1749060747215,1.08427674,105040.0,105030.0,0.84169312]
[1749060747645,1.08427674,105040.0,105030.0,0.85060753]
[1749060747840,1.08427674,105040.0,105030.0,0.84169312]
[1749060749325,1.08427674,105040.0,105030.0,0.85060753]
[1749060749543,1.08427674,105040.0,105030.0,0.84169312]
[1749060749760,1.08427674,105040.0,105030.0,0.85060753]
[1749060749985,1.08427674,105040.0,105030.0,0.84169312]
[1749060750700,1.08427674,105040.0,105030.0,0.85060753]
[1749060751359,1.08427674,105040.0,105030.0,0.84169312]
[1749060753194,1.08427674,105040.0,105030.0,0.85060754]
[1749060753474,1.08427674,105040.0,105030.0,0.84169312]
[1749060755405,1.08427674,105040.0,105030.0,0.85060754]
[1749060755616,1.08427674,105040.0,105030.0,0.84169312]
[1749060755823,1.08427674,105040.0,105030.0,0.85060754]
[1749060755952,1.08427674,105040.0,105030.0,0.84169312]
[1749060756957,1.08427674,105040.0,105030.0,0.85060754]
[1749060757402,1.08427674,105040.0,105030.0,0.84169312]
[1749060758132,1.08427674,105040.0,105030.0,0.85060754]
[1749060758544,0.74627674,105040.0,105030.0,0.84169312]
[1749060758760,1.11482674,105060.0,105040.0,0.3315]
[1749060758761,0.74627674,105050.0,105040.0,0.3315]
[1749060758961,0.74627674,105050.0,105040.0,0.48738]
[1749060759166,0.74627674,105050.0,105040.0,0.49629368]
[1749060759603,0.74627674,105050.0,105040.0,0.48738]
[1749060760007,0.74627674,105050.0,105040.0,0.49629368]
[1749060760297,0.74627674,105050.0,105040.0,0.49729368]
[1749060761559,0.74627674,105050.0,105040.0,0.50620736]
[1749060761755,0.74627674,105050.0,105040.0,0.49729368]
[1749060762603,1.08627674,105050.0,105040.0,0.48189368]
[1749060762823,1.08627674,105050.0,105040.0,0.32601368]
[1749060763068,1.08627674,105050.0,105040.0,0.46579368]
[1749060763278,1.10247674,105050.0,105040.0,0.47470766]
[1749060763409,1.10247674,105050.0,105040.0,0.47470774]
[1749060763626,1.10247674,105050.0,105040.0,0.46579368]
[1749060764862,1.08627674,105050.0,105040.0,0.46579368]
[1749060766686,1.10217674,105050.0,105040.0,0.46575368]
[1749060767109,1.10217674,105050.0,105040.0,0.47466778]
[1749060767314,1.10217674,105050.0,105040.0,0.46575368]
[1749060767783,1.11867674,105050.0,105040.0,0.16575368]
[1749060768201,1.10217674,105050.0,105040.0,0.16575368]
[1749060768841,0.3559,105050.0,105040.0,0.16575368]
[1749060769178,1.10217674,105050.0,105040.0,0.16575368]
[1749060769907,1.10217674,105050.0,105040.0,0.01882794]
[1749060770117,1.86455348,105050.0,105040.0,0.05946849]
[1749060770316,1.86455348,105050.0,105040.0,0.2242233]
[1749060770516,1.90445339,105050.0,105040.0,0.21530849]
[1749060770733,1.90445339,105050.0,105040.0,0.22422377]
[1749060770951,1.90445339,105050.0,105040.0,0.21530849]
[1749060771162,1.15817665,105050.0,105040.0,0.21530849]
[1749060771632,1.1867298,105050.0,105040.0,0.22422372]
[1749060771834,1.1867298,105050.0,105040.0,0.21530849]
[1749060772039,1.1867298,105050.0,105040.0,0.22422372]
[1749060772290,1.1867298,105050.0,105040.0,0.21530849]
[1749060772848,1.1867298,105050.0,105040.0,0.22422374]
[1749060773045,1.1867298,105050.0,105040.0,0.21530849]
[1749060773557,1.1867298,105050.0,105040.0,0.22422374]
[1749060773747,1.1867298,105050.0,105040.0,0.21530849]
[1749060774177,1.18672441,105050.0,105040.0,0.05946849]
[1749060774514,1.17538289,105050.0,105040.0,0.21530849]
[1749060774720,1.17538289,105050.0,105040.0,0.22422374]
[1749060774928,1.17538289,105050.0,105040.0,0.21530849]
[1749060775147,1.17538289,105050.0,105040.0,0.22422374]
[1749060775591,1.17538289,105050.0,105040.0,0.21530849]
[1749060777876,1.17538289,105050.0,105040.0,0.22422374]
[1749060778134,1.17538289,105050.0,105040.0,0.05946849]
[1749060778391,1.17538289,105050.0,105040.0,0.42962373]
[1749060778645,1.17538289,105050.0,105040.0,0.42070849]
[1749060779343,1.17538289,105050.0,105040.0,0.42962374]
[1749060779581,1.92165963,105050.0,105040.0,0.42070849]
[1749060780523,1.92165963,105050.0,105040.0,0.4296237]
[1749060780763,1.17538289,105050.0,105040.0,0.42070849]
[1749060781024,0.42910615,105050.0,105040.0,0.42070849]
[1749060781288,1.17538289,105050.0,105040.0,0.42070849]
[1749060781719,1.17538289,105050.0,105040.0,0.42962369]
[1749060781930,1.17538289,105050.0,105040.0,0.42070849]
[1749060783659,1.15928289,105050.0,105040.0,0.42070849]
[1749060783897,1.15928289,105050.0,105040.0,0.42962369]
[1749060784311,1.15928289,105050.0,105040.0,0.42070849]
[1749060785462,1.15928289,105050.0,105040.0,0.42962369]
[1749060785708,1.15928289,105050.0,105040.0,0.42070849]
[1749060786395,1.14338289,105050.0,105040.0,0.42070849]
[1749060787157,1.14338289,105050.0,105040.0,0.42962369]
[1749060787365,1.14338289,105050.0,105040.0,0.42070849]
[1749060788000,1.15878289,105050.0,105040.0,0.42070849]
[1749060788205,1.15878289,105050.0,105040.0,0.42962369]
[1749060788412,1.15878289,105050.0,105040.0,0.42070849]
[1749060788650,1.15878289,105050.0,105040.0,0.42962369]
[1749060788852,1.15878289,105050.0,105040.0,0.42070849]
[1749060789025,1.15878289,105050.0,105040.0,0.42962369]
[1749060789226,1.15878289,105050.0,105040.0,0.42070849]
[1749060789439,1.15878289,105050.0,105040.0,0.42962369]
[1749060789645,1.15878289,105050.0,105040.0,0.42070849]
[1749060790733,1.15878289,105050.0,105040.0,0.26486849]
[1749060790940,1.15878289,105050.0,105040.0,0.42962369]
[1749060791389,1.15878289,105050.0,105040.0,0.42070849]
[1749060792195,1.15878289,105050.0,105040.0,0.42962369]
[1749060792404,1.15878289,105050.0,105040.0,0.42070849]
[1749060793007,1.14338289,105050.0,105040.0,0.42070849]
[1749060793207,1.89153303,105050.0,105040.0,0.42070849]
[1749060793407,1.89153303,105050.0,105040.0,0.42962369]
[1749060793633,1.89153303,105050.0,105040.0,0.42070849]
[1749060793815,1.89153303,105050.0,105040.0,0.42962369]
[1749060794047,1.89153303,105050.0,105040.0,0.42070849]
[1749060794241,1.89153303,105050.0,105040.0,0.27378369]
[1749060794492,1.89153303,105050.0,105040.0,0.42958369]
[1749060794711,1.90723303,105050.0,105040.0,0.42066849]
[1749060795148,1.90723303,105050.0,105040.0,0.42958369]
[1749060795865,1.90723303,105050.0,105040.0,0.42066849]
[1749060796723,1.91857544,105050.0,105040.0,0.42958369]
[1749060796942,1.91857544,105050.0,105040.0,0.42066849]
[1749060798088,1.91857544,105050.0,105040.0,0.42958369]
[1749060798295,1.91857544,105050.0,105040.0,0.43849889]
[1749060798510,1.91857544,105050.0,105040.0,0.42958369]
[1749060799361,1.9185852,105050.0,105040.0,0.42958369]
[1749060799569,1.9185852,105050.0,105040.0,0.43849889]
[1749060799988,1.9185852,105050.0,105040.0,0.42958369]
[1749060801231,1.9185852,105050.0,105040.0,0.43849889]
[1749060801432,1.9028852,105050.0,105040.0,0.42958369]
[1749060802690,1.9028852,105050.0,105040.0,0.43849889]
[1749060802902,1.9028852,105050.0,105040.0,0.42958369]
[1749060803109,1.9028852,105050.0,105040.0,0.23314369]
[1749060803329,1.9028852,105050.0,105040.0,0.42954369]
[1749060803751,1.9028965,105050.0,105040.0,0.23314369]
[1749060803943,1.9028965,105050.0,105040.0,0.43845889]
[1749060804371,1.9028965,105050.0,105040.0,0.42954369]
[1749060804769,1.9028965,105050.0,105040.0,0.44584369]
[1749060805865,1.9028965,105050.0,105040.0,0.24944369]
[1749060806103,0.77576659,105050.0,105040.0,0.53818465]
[1749060806312,0.74721344,105050.0,105040.0,0.53748465]
[1749060806525,0.74721344,105050.0,105040.0,0.83748465]
[1749060806526,1.83442688,105050.0,105040.0,0.83748465]
[1749060806757,1.83442688,105050.0,105040.0,0.83744465]
[1749060809910,1.86337355,105050.0,105040.0,0.83744465]
[1749060825388,1.08721344,105050.0,105040.0,1.13744465]
[1749060826041,1.08721344,105050.0,105040.0,1.13561203]
[1749060826273,1.83442688,105050.0,105040.0,1.05967107]
[1749060826497,1.83442688,105050.0,105040.0,1.05959107]
[1749060830559,1.83442688,105050.0,105040.0,1.05946807]
[1749060833578,1.08721344,105050.0,105040.0,1.05946807]
[1749060833845,1.08721344,105050.0,105040.0,1.15532237]
[1749060834055,0.34,105050.0,105040.0,1.15532237]
[1749060834262,1.08721344,105050.0,105040.0,1.15532237]
[1749060837720,0.34,105050.0,105040.0,1.15532237]
[1749060837931,1.08721344,105050.0,105040.0,1.15532237]
[1749060838342,0.74721344,105050.0,105040.0,1.15532237]
[1749060847306,0.74721344,105050.0,105040.0,0.75364237]
[1749060847540,1.49442688,105050.0,105040.0,1.15516237]
[1749060847744,1.83442688,105050.0,105040.0,1.13876237]
[1749060847926,1.84992688,105050.0,105040.0,0.53114807]
[1749060848154,1.86522688,105050.0,105040.0,0.72730807]
[1749060848338,1.86522688,105050.0,105040.0,0.57166807]
[1749060848582,1.86522688,105050.0,105040.0,0.72730807]
[1749060852049,1.89402854,105050.0,105040.0,0.72730807]
[1749060855514,1.87872854,105050.0,105040.0,0.72730807]
[1749060855726,1.86322854,105050.0,105040.0,0.74280807]
[1749060857183,1.86322854,105050.0,105040.0,0.72730807]
[1749060857388,1.11584426,105050.0,105040.0,0.72730807]
[1749060860711,1.11584426,105050.0,105040.0,0.74240807]
[1749060863184,1.11584426,105050.0,105040.0,0.75780807]
[1749060863609,1.0870426,105050.0,105040.0,0.75780807]
[1749060864465,1.0870426,105050.0,105040.0,0.74240807]
[1749060866884,1.08639107,105050.0,105040.0,0.74240807]
[1749060868934,1.08639107,105050.0,105040.0,0.58676807]
[1749060869137,1.08639107,105050.0,105040.0,0.74240807]
[1749060869340,1.08639107,105050.0,105040.0,0.72730807]
[1749060871037,1.11432008,105050.0,105040.0,0.74320807]
[1749060879371,1.86142088,105050.0,105040.0,0.74320807]
[1749060891232,1.86142088,105050.0,105040.0,0.75980807]
[1749060892963,1.86142088,105050.0,105040.0,0.74320807]
[1749060894091,1.86142088,105050.0,105040.0,0.74312807]
[1749060895981,1.86142088,105050.0,105040.0,0.58756807]
[1749060896211,1.86142088,105050.0,105040.0,0.74312807]
[1749060896429,1.86142088,105050.0,105040.0,0.74308807]
[1749060896857,1.86142088,105050.0,105040.0,0.72718807]
[1749060898086,1.86142088,105050.0,105040.0,0.71827326]
[1749060900665,1.83349187,105050.0,105040.0,0.71827326]
[1749060902241,1.83349187,105050.0,105040.0,0.73477326]
[1749060903689,1.83349187,105050.0,105040.0,0.74977326]
[1749060905100,1.83349187,105050.0,105040.0,0.73477326]
[1749060905987,1.86149463,105050.0,105040.0,0.73477326]
[1749060906368,1.86149463,105050.0,105040.0,0.71827326]
[1749060908301,1.86149463,105050.0,105040.0,0.73367326]
[1749060910842,1.86149463,105050.0,105040.0,0.71827326]
[1749060911060,1.86149463,105050.0,105040.0,0.56271326]
[1749060911320,1.87729463,105050.0,105040.0,0.41823326]
[1749060911523,1.87729463,105050.0,105040.0,0.71823326]
[1749060912601,1.86149463,105050.0,105040.0,0.71823326]
[1749060913535,2.64086633,105050.0,105040.0,0.26263326]
[1749060913725,2.65225732,105050.0,105040.0,0.41811326]
[1749060915022,1.90518562,105050.0,105040.0,0.41811326]
[1749060915430,1.89379463,105050.0,105040.0,0.41811326]
[1749060918145,1.89379463,105050.0,105040.0,0.40919806]
[1749060922442,2.64086633,105050.0,105040.0,0.40919806]
[1749060923922,1.89379463,105050.0,105040.0,0.40919806]
[1749060926664,1.87729463,105050.0,105040.0,0.40919806]
[1749060928127,0.36735123,105050.0,105040.0,0.42509806]
[1749060928340,0.36735123,105050.0,105040.0,0.51613902]
[1749060928557,1.11442293,105050.0,105040.0,0.51613902]
[1749060928997,1.86149463,105050.0,105040.0,0.51613902]
[1749060933518,1.86149463,105050.0,105040.0,0.44019806]
[1749060935788,1.83349187,105050.0,105040.0,0.44019806]
[1749060944118,1.83349187,105050.0,105040.0,0.44015806]
[1749060945557,1.83349187,105050.0,105040.0,0.28471806]
[1749060945768,1.83349187,105050.0,105040.0,0.44015806]
[1749060946647,1.83349187,105050.0,105040.0,0.24431806]
[1749060946860,2.61106357,105050.0,105040.0,0.21331806]
[1749060947077,2.61106357,105050.0,105040.0,0.25367806]
[1749060947310,2.61106357,105050.0,105040.0,0.40911806]
[1749060947997,1.86399187,105050.0,105040.0,0.40911806]
[1749060948205,1.86399187,105050.0,105040.0,0.00795806]
[1749060948612,1.89192995,105050.0,105040.0,0.00795806]
[1749060948840,1.89192995,105050.0,105040.0,0.25371806]
[1749060949120,1.87682995,105050.0,105040.0,0.25371806]
[1749060949338,1.12989554,105050.0,105040.0,0.40911806]
[1749060950207,1.14509554,105050.0,105040.0,0.40911806]
[1749060954424,1.12989554,105050.0,105040.0,0.40911806]
[1749060958249,1.12989554,105050.0,105040.0,0.40116]
[1749060961631,1.11449554,105050.0,105040.0,0.40116]
[1749060964568,1.11449554,105050.0,105040.0,0.41666]
[1749060965289,1.11449554,105050.0,105040.0,0.40116]
[1749060966656,1.13099554,105050.0,105040.0,0.40116]
[1749060967405,1.11449554,105050.0,105040.0,0.40116]
[1749060968386,1.13059554,105050.0,105040.0,0.40116]
[1749060968810,1.11449554,105050.0,105040.0,0.40116]
[1749060971248,1.86165217,105050.0,105040.0,0.40116]
[1749060972307,1.86165217,105050.0,105040.0,0.41706]
[1749060976354,1.8730542,105050.0,105040.0,0.41706]
[1749060976662,1.86165217,105050.0,105040.0,0.41706]
[1749060977760,1.86165217,105050.0,105040.0,0.26166]
[1749060977973,1.86165217,105050.0,105040.0,0.40112]
[1749060982298,1.86165217,105050.0,105040.0,0.41732]
[1749060984461,1.86165217,105050.0,105040.0,0.73262]
[1749060984462,1.08653128,105050.0,105040.0,0.73262]
[1749060985344,1.83371409,105050.0,105040.0,0.73262]
[1749060999458,0.33934847,105050.0,105040.0,0.73262]
[1749060999692,1.08653128,105050.0,105040.0,0.73262]
[1749060999930,0.400049,105080.0,105060.0,0.0165]
[1749061000145,0.76348281,105080.0,105070.0,0.19564]
[1749061000576,1.10348281,105080.0,105070.0,0.19564]
[1749061001051,0.76348281,105080.0,105070.0,0.19564]
[1749061001263,2.25784843,105080.0,105070.0,0.19564]
[1749061001472,2.26084843,105080.0,105070.0,0.19564]
[1749061001682,2.60484843,105080.0,105070.0,0.19568797]
[1749061001890,2.60184843,105080.0,105070.0,0.19568797]
[1749061002102,2.60584843,105080.0,105070.0,0.19568797]
[1749061005762,2.60584843,105080.0,105070.0,0.40104797]
[1749061007327,2.60584843,105080.0,105070.0,0.24572797]
[1749061007535,2.62194843,105080.0,105070.0,0.40100797]
[1749061011235,2.60584843,105080.0,105070.0,0.40100797]
[1749061011461,2.62144843,105080.0,105070.0,0.40100797]
[1749061013836,0.3799,105080.0,105070.0,0.40100797]
[1749061014031,2.60584843,105080.0,105070.0,0.40100797]
[1749061015251,2.58954843,105080.0,105070.0,0.40100797]
[1749061015485,1.84236562,105080.0,105070.0,0.40100797]
[1749061015694,2.58954843,105080.0,105070.0,0.40100797]
[1749061015913,2.58954843,105080.0,105070.0,0.41760797]
[1749061016139,1.84236562,105080.0,105070.0,0.41760797]
[1749061016617,1.50236562,105080.0,105070.0,0.50964893]
[1749061018133,1.50236562,105080.0,105070.0,0.35436893]
[1749061018571,1.50236562,105080.0,105070.0,0.50964893]
[1749061018787,1.50236562,105080.0,105070.0,0.35436893]
[1749061019021,1.50236562,105080.0,105070.0,0.50964893]
[1749061019230,1.50236562,105080.0,105070.0,0.35436893]
[1749061019448,1.50236562,105080.0,105070.0,0.50964893]
[1749061019449,0.75462373,105080.0,105070.0,0.50964893]
[1749061020105,0.75462373,105080.0,105070.0,0.50960893]
[1749061021445,0.75462373,105080.0,105070.0,0.35436893]
[1749061021929,0.75462373,105080.0,105070.0,0.45022323]
[1749061022159,0.75462373,105080.0,105070.0,0.60546323]
[1749061024760,0.008,105080.0,105070.0,0.90546323]
[1749061025604,1.22062373,105090.0,105080.0,0.3]
[1749061025815,1.22062373,105090.0,105080.0,0.3309]
[1749061026954,1.22162373,105090.0,105080.0,0.3309]
[1749061027142,1.22262373,105090.0,105080.0,0.3309]
[1749061027593,1.22262373,105090.0,105080.0,0.4267543]
[1749061028433,0.476,105090.0,105080.0,0.4267543]
[1749061030110,1.22262373,105090.0,105080.0,0.4267543]
[1749061030318,0.476,105090.0,105080.0,0.4267543]
[1749061032019,0.475,105090.0,105080.0,0.4267543]
[1749061032209,0.474,105090.0,105080.0,0.4267543]
[1749061032450,0.474,105090.0,105080.0,0.4297543]
[1749061032633,0.434,105090.0,105080.0,0.4297543]
[1749061032843,1.18062373,105090.0,105080.0,0.4297543]
[1749061033049,1.18062373,105090.0,105080.0,0.6251943]
[1749061033881,0.434,105090.0,105080.0,0.6251943]
[1749061034088,1.18062373,105090.0,105080.0,0.6251943]
[1749061037010,1.18062373,105090.0,105080.0,0.4699943]
[1749061037261,1.18062373,105090.0,105080.0,0.6251943]
[1749061039792,1.14062373,105090.0,105080.0,0.6251943]
[1749061045106,1.14062373,105090.0,105080.0,0.4699943]
[1749061045341,1.14062373,105090.0,105080.0,0.6251543]
[1749061046912,1.10062373,105090.0,105080.0,0.6251543]
[1749061047788,1.10062373,105090.0,105080.0,0.8304343]
[1749061052096,1.10062373,105090.0,105080.0,0.8148343]
[1749061052338,1.86224746,105090.0,105080.0,0.50828]
[1749061052569,2.21824746,105090.0,105080.0,0.24852]
[1749061052813,2.21824746,105090.0,105080.0,0.40368]
[1749061053895,2.17824746,105090.0,105080.0,0.40368]
[1749061057120,1.06062373,105090.0,105080.0,0.41938]
[1749061057335,1.06062373,105090.0,105080.0,0.5318343]
[1749061057567,1.06062373,105090.0,105080.0,0.60777526]
[1749061060702,0.314,105090.0,105080.0,0.60777526]
[1749061060912,0.274,105090.0,105080.0,0.60777526]
[1749061061136,1.02062373,105090.0,105080.0,0.60777526]
[1749061063779,1.02062373,105090.0,105080.0,0.72293029]
[1749061064005,1.02062373,105090.0,105080.0,0.70777526]
[1749061065742,1.02062373,105090.0,105080.0,0.6318343]
[1749061065953,1.03682373,105090.0,105080.0,0.91471068]
[1749061067333,1.03682373,105090.0,105080.0,0.91467068]
[1749061067799,1.02062373,105090.0,105080.0,0.91467068]
[1749061068033,0.98062373,105090.0,105080.0,0.91467068]
[1749061068503,0.98062373,105090.0,105080.0,1.25467068]
[1749061069448,0.98062373,105090.0,105080.0,1.26997068]
[1749061072417,0.98062373,105090.0,105080.0,1.25467068]
[1749061074521,0.98062373,105090.0,105080.0,1.27037068]
[1749061075253,0.194,105090.0,105080.0,1.27037068]
[1749061077353,0.194,105090.0,105080.0,0.93037068]
[1749061079087,0.194,105090.0,105080.0,1.27037068]
[1749061080167,0.94062373,105090.0,105080.0,1.25467068]
[1749061080599,0.94062373,105090.0,105080.0,1.27057068]
[1749061081037,0.94062373,105090.0,105080.0,1.25467068]
[1749061082143,0.90062373,105090.0,105080.0,1.26997068]
[1749061083260,0.154,105090.0,105080.0,1.26997068]
[1749061085023,0.154,105090.0,105080.0,1.2547943]
[1749061089269,0.114,105090.0,105080.0,1.2547943]
[1749061090432,0.114,105090.0,105080.0,1.2702943]
[1749061091924,0.114,105090.0,105080.0,2.00141803]
[1749061092324,0.114,105090.0,105080.0,1.98611803]
[1749061092543,0.114,105090.0,105080.0,0.443]
[1749061092751,0.89222373,105090.0,105080.0,0.24848]
[1749061092960,0.89222373,105090.0,105080.0,0.26368282]
[1749061093175,0.89222373,105090.0,105080.0,0.41876282]
[1749061093790,0.89222373,105090.0,105080.0,0.26368282]
[1749061094008,0.89222373,105090.0,105080.0,0.41876282]
[1749061094823,0.89222373,105090.0,105080.0,0.43016733]
[1749061095245,0.89222373,105090.0,105080.0,0.43020733]
[1749061095667,0.89222373,105090.0,105080.0,0.4036]
[1749061096257,0.1056,105090.0,105080.0,0.4036]
[1749061096859,0.1056,105090.0,105080.0,0.20828]
[1749061097118,0.1056,105090.0,105080.0,0.4036]
[1749061097758,0.0898,105090.0,105080.0,0.4036]
[1749061098390,0.0898,105090.0,105080.0,0.20828]
[1749061098602,0.1063,105090.0,105080.0,0.4036]
[1749061100428,0.0898,105090.0,105080.0,0.4036]
[1749061103335,0.0498,105090.0,105080.0,0.4036]
[1749061104503,0.034,105090.0,105080.0,0.4036]
[1749061104711,0.034,105090.0,105080.0,0.4196]
[1749061105077,0.034,105090.0,105080.0,0.4036]
[1749061105282,0.034,105090.0,105080.0,0.41498673]
[1749061107497,0.034,105090.0,105080.0,0.41498477]
[1749061108127,0.0493,105090.0,105080.0,0.41498477]
[1749061108343,0.0493,105090.0,105080.0,0.25986419]
[1749061108544,0.0493,105090.0,105080.0,0.41498419]
[1749061110922,0.0655,105090.0,105080.0,0.25986419]
[1749061111138,1.65460176,105090.0,105080.0,0.20832]
[1749061111345,1.77948161,105090.0,105080.0,0.24852]
[1749061111585,1.77948161,105090.0,105080.0,0.40364]
[1749061111783,1.7933066,105090.0,105080.0,0.24852]
[1749061112000,1.7933066,105090.0,105080.0,0.40364]
[1749061112840,1.7933066,105090.0,105080.0,0.40164]
[1749061113048,1.7943066,105090.0,105080.0,0.40064]
[1749061113264,1.7953066,105090.0,105080.0,0.40064]
[1749061114673,2.1353066,105090.0,105080.0,0.20532]
[1749061114822,2.1353066,105090.0,105080.0,0.40064]
[1749061118416,2.1353066,105090.0,105080.0,0.24552]
[1749061118824,2.05409423,105090.0,105080.0,0.40064]
[1749061122076,1.3074705,105090.0,105080.0,0.40064]
[1749061129343,2.05409423,105090.0,105080.0,0.40064]
[1749061130921,1.3074705,105090.0,105080.0,0.40064]
[1749061131141,1.29306488,105090.0,105080.0,0.40064]
[1749061131361,0.51494115,105090.0,105080.0,0.40064]
[1749061131582,1.29326488,105090.0,105080.0,0.40064]
[1749061132212,1.3857761,105090.0,105080.0,0.40064]
[1749061132432,1.29326488,105090.0,105080.0,0.40064]
[1749061133460,1.30710906,105090.0,105080.0,0.40064]
[1749061140403,2.05373279,105090.0,105080.0,0.20532]
[1749061140626,2.19624401,105090.0,105080.0,0.24552]
[1749061140847,2.19624401,105090.0,105080.0,0.20532]
[1749061141082,2.31182862,105090.0,105080.0,0.40064]
[1749061141725,2.31082862,105090.0,105080.0,0.40064]
[1749061141952,2.31082862,105090.0,105080.0,0.24552]
[1749061142174,0.4704,105080.0,105070.0,0.20540797]
[1749061142430,1.40538925,105080.0,105070.0,0.40072797]
[1749061142647,1.47096882,105080.0,105070.0,0.40072797]
[1749061142866,1.49952182,105080.0,105070.0,0.40072797]
[1749061143073,1.24639448,105080.0,105070.0,0.40072797]
[1749061143293,1.23129448,105080.0,105070.0,0.40072797]
[1749061143509,1.24939448,105080.0,105070.0,0.40072797]
[1749061143776,1.25139448,105080.0,105070.0,0.40072797]
[1749061146146,1.26593533,105080.0,105070.0,0.40072797]
[1749061146385,1.26593533,105080.0,105070.0,0.24560797]
[1749061146625,1.26593533,105080.0,105070.0,0.40072797]
[1749061147681,1.35844655,105080.0,105070.0,0.40072797]
[1749061148382,0.4889116,105080.0,105070.0,0.20540797]
[1749061148599,1.23553533,105080.0,105070.0,0.41608797]
[1749061148842,1.23553533,105080.0,105070.0,0.40068797]
[1749061150807,1.23553533,105080.0,105070.0,0.41608797]
[1749061152316,0.4889116,105080.0,105070.0,0.41608797]
[1749061152530,1.23553533,105080.0,105070.0,0.41608797]
[1749061152737,1.32804655,105080.0,105070.0,0.41608797]
[1749061154388,1.32804655,105080.0,105070.0,0.43228797]
[1749061154389,0.10581775,105080.0,105070.0,0.43228797]
[1749061158113,0.10581775,105080.0,105070.0,0.44574288]
[1749061158822,0.44581775,105080.0,105070.0,0.44574288]
[1749061160005,0.10581775,105080.0,105070.0,0.52168384]
[1749061160247,0.005,105080.0,105070.0,1.26830757]
[1749061160465,0.005,105080.0,105070.0,1.5796987]
[1749061160699,0.005,105080.0,105070.0,1.57969523]
[1749061161136,0.005,105080.0,105070.0,1.58348988]
[1749061161360,0.034,105090.0,105080.0,0.0311]
[1749061161607,0.034,105090.0,105080.0,0.78910384]
[1749061162469,0.037,105090.0,105080.0,0.78910384]
[1749061162688,0.039,105090.0,105080.0,0.78910384]
[1749061163763,0.039,105090.0,105080.0,0.78909275]
[1749061164412,0.039,105090.0,105080.0,0.77772373]
[1749061167695,0.039,105090.0,105080.0,0.78909275]
[1749061168135,0.039,105090.0,105080.0,0.789079]
[1749061168359,0.034,105090.0,105080.0,0.789079]